bitfinex/quotes_BTCUSD_20241102
["timestamp","ask_amount","ask_price","bid_price","bid_amount"]
[1730550190848,0.50127278,69632.0,69631.0,0.001624]
[1730550191248,0.5012015,69632.0,69631.0,0.001624]
[1730550194378,0.50117288,69632.0,69631.0,0.001624]
[1730550194736,0.61583035,69632.0,69631.0,0.001624]
[1730550197869,0.608641,69632.0,69631.0,0.001624]
[1730550201376,0.50117288,69632.0,69631.0,0.001624]
[1730550202935,0.60117288,69632.0,69631.0,0.001624]
[1730550205014,0.6009195,69632.0,69631.0,0.001624]
[1730550205435,0.60090516,69632.0,69631.0,0.001624]
[1730550208914,0.60090868,69632.0,69631.0,0.001624]
[1730550209375,0.60091014,69632.0,69631.0,0.001624]
[1730550209622,0.80589365,69632.0,69631.0,0.001624]
[1730550210541,0.91330482,69632.0,69631.0,0.001624]
[1730550210929,0.85176236,69632.0,69631.0,0.001624]
[1730550211383,0.85176236,69632.0,69628.0,0.001624]
[1730550211384,0.52302193,69629.0,69628.0,0.001624]
[1730550211593,1.00536878,69629.0,69628.0,0.001624]
[1730550211811,1.15037386,69629.0,69628.0,0.001624]
[1730550212056,1.14584608,69629.0,69628.0,0.001624]
[1730550212262,1.14584608,69629.0,69606.0,4.97e-05]
[1730550212263,0.023,69611.0,69606.0,4.97e-05]
[1730550212517,0.023,69611.0,69610.0,0.21508923]
[1730550212518,0.123558,69611.0,69610.0,0.21508923]
[1730550212723,0.123564,69607.0,69600.0,0.31566323]
[1730550212935,0.10057,69603.0,69600.0,0.21508923]
[1730550213153,0.01342276,69602.0,69599.0,0.100576]
[1730550213438,0.03489913,69601.0,69599.0,0.100576]
[1730550213656,0.03489913,69600.0,69599.0,0.100575]
[1730550214301,0.01342276,69600.0,69599.0,0.100575]
[1730550214526,0.01342276,69600.0,69597.0,0.00521809]
[1730550214779,0.01342276,69599.0,69598.0,0.100576]
[1730550215847,0.01342276,69599.0,69597.0,0.00521809]
[1730550216065,0.001,69599.0,69598.0,0.100577]
[1730550216288,0.01440487,69599.0,69598.0,0.100577]
[1730550217151,0.01540487,69599.0,69598.0,0.100577]
[1730550217378,0.01440487,69599.0,69598.0,0.100577]
[1730550218269,0.01540487,69599.0,69598.0,0.100577]
[1730550218771,0.02915009,69599.0,69598.0,0.100577]
[1730550218997,0.01540487,69599.0,69598.0,0.100577]
[1730550219695,0.01539993,69599.0,69598.0,0.100577]
[1730550221467,0.01539993,69599.0,69598.0,0.101399]
[1730550222605,0.01539311,69599.0,69598.0,0.101399]
[1730550223515,0.01539164,69599.0,69598.0,0.101399]
[1730550226337,0.01180114,69599.0,69598.0,0.101399]
[1730550227031,0.04442662,69603.0,69599.0,0.100575]
[1730550227268,0.14499762,69603.0,69599.0,0.100575]
[1730550228238,0.123571,69603.0,69600.0,0.100574]
[1730550228457,0.04542409,69603.0,69600.0,0.201148]
[1730550228685,0.001,69603.0,69602.0,0.100571]
[1730550228955,0.002,69603.0,69602.0,0.38466093]
[1730550229189,0.001,69603.0,69602.0,0.38466093]
[1730550229613,0.002,69603.0,69602.0,0.275471]
[1730550230032,0.001,69603.0,69602.0,0.275471]
[1730550230256,0.21508923,69608.0,69606.0,0.100565]
[1730550230670,0.02143188,69609.0,69606.0,0.100565]
[1730550230894,0.10056,69610.0,69604.0,0.201135]
[1730550231103,0.10056,69610.0,69607.0,0.100564]
[1730550231816,0.100567,69605.0,69600.0,0.100574]
[1730550232035,0.224129,69607.0,69599.0,0.0824]
[1730550232036,0.02143195,69606.0,69599.0,0.0824]
[1730550232281,0.023,69604.0,69602.0,0.10057]
[1730550232492,0.123569,69604.0,69600.0,0.100574]
[1730550232939,0.123569,69604.0,69599.0,0.0824]
[1730550232940,0.10057,69603.0,69599.0,0.0824]
[1730550233157,0.10057,69603.0,69599.0,0.182975]
[1730550233365,0.10057,69603.0,69599.0,0.0824]
[1730550233808,0.04443195,69603.0,69602.0,0.000822]
[1730550234051,0.024,69605.0,69602.0,0.000822]
[1730550234262,0.12457,69603.0,69602.0,0.000822]
[1730550234915,0.1450085,69603.0,69602.0,0.000822]
[1730550235135,0.12357,69603.0,69602.0,0.000822]
[1730550235414,0.1450085,69603.0,69602.0,0.000822]
[1730550235617,0.1976923,69603.0,69602.0,0.000822]
[1730550236037,0.1450085,69603.0,69602.0,0.000822]
[1730550236676,0.1460085,69603.0,69602.0,0.000822]
[1730550236893,0.1470085,69603.0,69602.0,0.000822]
[1730550238191,0.16042,69603.0,69602.0,0.000822]
[1730550241408,0.16051964,69603.0,69602.0,0.000822]
[1730550242636,0.24922632,69603.0,69602.0,0.000822]
[1730550242973,0.16051964,69603.0,69602.0,0.000822]
[1730550243235,0.25701964,69603.0,69602.0,0.000822]
[1730550243885,0.16051964,69603.0,69602.0,0.000822]
[1730550244569,0.12557,69603.0,69602.0,0.000822]
[1730550244797,0.16051377,69603.0,69602.0,0.000822]
[1730550247275,0.16215777,69603.0,69602.0,0.000822]
[1730550247482,0.24329046,69603.0,69602.0,0.000822]
[1730550248036,0.2217866,69603.0,69602.0,0.000822]
[1730550248220,0.24327853,69603.0,69602.0,0.000822]
[1730550248618,0.16214543,69603.0,69602.0,0.000822]
[1730550252778,0.20500067,69603.0,69602.0,0.000822]
[1730550253155,0.16214543,69603.0,69602.0,0.000822]
[1730550254277,0.22642829,69603.0,69602.0,0.000822]
[1730550255343,0.40635349,69603.0,69602.0,0.000822]
[1730550255550,0.40635349,69603.0,69602.0,0.111544]
[1730550256195,0.42778111,69603.0,69602.0,0.111544]
[1730550256412,0.54277401,69603.0,69602.0,0.111544]
[1730550257265,0.43563591,69603.0,69602.0,0.111544]
[1730550257579,0.43578938,69603.0,69602.0,0.111544]
[1730550257983,0.57424463,69603.0,69602.0,0.111544]
[1730550258194,0.74514463,69603.0,69602.0,0.111544]
[1730550258861,0.7102132,69603.0,69602.0,0.111544]
[1730550259227,0.8730602,69603.0,69602.0,0.111544]
[1730550259421,0.7102132,69603.0,69602.0,0.111544]
[1730550259660,0.74513063,69603.0,69602.0,0.111544]
[1730550259873,0.66733063,69603.0,69602.0,0.111544]
[1730550260277,0.66633063,69603.0,69602.0,0.111544]
[1730550260474,0.66533063,69603.0,69602.0,0.111544]
[1730550260672,0.66633063,69603.0,69602.0,0.111544]
[1730550260848,0.66833063,69603.0,69602.0,0.111544]
[1730550261279,0.67033063,69603.0,69602.0,0.111544]
[1730550261957,0.67031965,69603.0,69602.0,0.111544]
[1730550265903,0.55532675,69603.0,69602.0,0.111544]
[1730550266352,0.52039548,69603.0,69602.0,0.111544]
[1730550266553,0.55533568,69603.0,69602.0,0.111544]
[1730550266761,0.46223568,69603.0,69602.0,0.111544]
[1730550267099,0.56967258,69603.0,69602.0,0.111544]
[1730550267524,0.46223568,69603.0,69602.0,0.111544]
[1730550268307,0.43121219,69603.0,69602.0,0.111544]
[1730550268549,0.30915721,69603.0,69602.0,0.111544]
[1730550268759,0.0645842,69603.0,69602.0,0.111544]
[1730550269678,0.1651542,69603.0,69602.0,0.111544]
[1730550270283,0.16516393,69603.0,69602.0,0.111544]
[1730550270736,0.16516338,69603.0,69602.0,0.111544]
[1730550270953,0.06459338,69603.0,69602.0,0.111544]
[1730550271171,0.12905507,69603.0,69602.0,0.290015]
[1730550271392,0.10756884,69603.0,69602.0,0.290015]
[1730550273644,0.06459338,69603.0,69602.0,0.290015]
[1730550274013,0.029644,69603.0,69602.0,0.290015]
[1730550274223,0.06458977,69603.0,69602.0,0.290015]
[1730550277335,0.10756966,69603.0,69602.0,0.290015]
[1730550278002,0.06458977,69603.0,69602.0,0.290015]
[1730550278207,0.06456996,69603.0,69602.0,0.290015]
[1730550278620,0.04156996,69603.0,69602.0,0.290015]
[1730550278854,0.04156996,69603.0,69602.0,0.49870493]
[1730550279075,0.04156996,69603.0,69602.0,0.389515]
[1730550279984,0.04156996,69603.0,69602.0,0.49870493]
[1730550280494,0.03856996,69603.0,69602.0,0.63916018]
[1730550280735,0.01507706,69603.0,69602.0,0.63716018]
[1730550280969,0.01607212,69603.0,69602.0,0.63716018]
[1730550281198,0.003644,69603.0,69602.0,0.63716018]
[1730550281449,0.002644,69603.0,69602.0,0.63716018]
[1730550281686,0.004644,69603.0,69602.0,0.63716018]
[1730550281918,0.002644,69603.0,69602.0,0.63716018]
[1730550282144,0.001644,69603.0,69602.0,0.63716018]
[1730550282378,0.003644,69603.0,69602.0,0.63716018]
[1730550294350,0.11283393,69603.0,69602.0,0.111544]
[1730550294838,0.003644,69603.0,69602.0,0.291915]
[1730550295420,0.002644,69603.0,69602.0,0.291915]
[1730550296041,0.001644,69603.0,69602.0,0.291915]
[1730550296247,0.003644,69603.0,69602.0,0.291915]
[1730550296697,0.004644,69603.0,69602.0,0.291915]
[1730550297546,0.01605698,69603.0,69602.0,0.291915]
[1730550297962,0.01705698,69603.0,69602.0,0.291915]
[1730550298443,0.01605698,69603.0,69602.0,0.291915]
[1730550299280,0.01505698,69603.0,69602.0,0.291915]
[1730550299495,0.01605698,69603.0,69602.0,0.291915]
[1730550299925,0.01805698,69603.0,69602.0,0.291915]
[1730550300332,0.01605698,69603.0,69602.0,0.291915]
[1730550300789,0.01705698,69603.0,69602.0,0.291915]
[1730550301431,0.003644,69603.0,69602.0,0.291915]
[1730550301636,0.01706606,69603.0,69602.0,0.291915]
[1730550303082,0.03854136,69603.0,69602.0,0.291915]
[1730550304497,0.01706606,69603.0,69602.0,0.291915]
[1730550305107,0.01707366,69603.0,69602.0,0.52357025]
[1730550306078,0.003644,69603.0,69602.0,0.52357025]
[1730550306940,0.002644,69603.0,69602.0,0.52357025]
[1730550307423,0.001644,69603.0,69602.0,0.52357025]
[1730550307766,0.001644,69603.0,69602.0,0.53057025]
[1730550307976,0.003644,69603.0,69602.0,0.53057025]
[1730550308283,0.003644,69603.0,69602.0,0.52857025]
[1730550308871,0.003644,69603.0,69602.0,0.53057025]
[1730550309354,0.002644,69603.0,69602.0,0.53057025]
[1730550309760,0.003644,69603.0,69602.0,0.53657025]
[1730550310642,0.003644,69603.0,69602.0,0.54157025]
[1730550310821,0.003644,69603.0,69602.0,0.65076018]
[1730550311017,0.003644,69603.0,69602.0,0.54157025]
[1730550319136,0.003644,69603.0,69602.0,0.53957025]
[1730550324732,0.003644,69603.0,69602.0,0.44637025]
[1730550329099,0.003644,69603.0,69602.0,0.117544]
[1730550329100,0.283114,69603.0,69602.0,0.117544]
[1730550329313,0.37736961,69603.0,69602.0,0.117544]
[1730550330234,0.37636961,69603.0,69602.0,0.111544]
[1730550330437,0.31802602,69603.0,69602.0,0.113544]
[1730550330770,0.34002602,69603.0,69602.0,0.111544]
[1730550331178,0.34302602,69603.0,69602.0,0.111544]
[1730550331377,0.307114,69603.0,69602.0,0.111544]
[1730550331611,0.39859331,69603.0,69602.0,0.111544]
[1730550331815,0.40059331,69603.0,69602.0,0.111544]
[1730550334740,0.40057862,69603.0,69602.0,0.111544]
[1730550335346,0.34399935,69603.0,69602.0,0.111544]
[1730550338351,0.309114,69603.0,69602.0,0.111544]
[1730550338558,0.34397491,69603.0,69602.0,0.111544]
[1730550342476,0.34396466,69603.0,69602.0,0.111544]
[1730550348433,0.85981659,69603.0,69602.0,0.111544]
[1730550348774,0.88910396,69603.0,69602.0,0.111544]
[1730550349088,0.88410396,69603.0,69602.0,0.111544]
[1730550349315,0.88407648,69603.0,69602.0,0.111544]
[1730550349528,0.89707648,69603.0,69602.0,0.111544]
[1730550350000,0.89707648,69603.0,69602.0,0.112544]
[1730550350001,0.89607648,69603.0,69602.0,0.112544]
[1730550350477,1.01826641,69603.0,69602.0,0.112544]
[1730550351107,1.02026641,69603.0,69602.0,0.112544]
[1730550351550,1.1132712,69603.0,69602.0,0.111544]
[1730550351959,1.12524154,69603.0,69602.0,0.111544]
[1730550352564,1.01823675,69603.0,69602.0,0.111544]
[1730550352993,1.01823253,69603.0,69602.0,0.111544]
[1730550353413,0.9090426,69603.0,69602.0,0.111544]
[1730550353815,0.75083585,69603.0,69602.0,0.111544]
[1730550354380,0.61235855,69603.0,69602.0,0.111544]
[1730550354607,0.2620033,69603.0,69602.0,0.111544]
[1730550355789,0.2670033,69603.0,69602.0,0.111544]
[1730550355996,0.2850033,69603.0,69602.0,0.111544]
[1730550356667,0.28502967,69603.0,69602.0,0.111544]
[1730550357398,0.37067793,69603.0,69602.0,0.111544]
[1730550360047,0.36567793,69603.0,69602.0,0.111544]
[1730550360257,0.37067793,69603.0,69602.0,0.111544]
[1730550362683,0.37071615,69603.0,69602.0,0.111544]
[1730550363105,0.5091714,69603.0,69602.0,0.111544]
[1730550363307,0.5041714,69603.0,69602.0,0.111544]
[1730550363509,0.5091714,69603.0,69602.0,0.111544]
[1730550363733,0.5041714,69603.0,69602.0,0.111544]
[1730550364357,0.5091714,69603.0,69602.0,0.111544]
[1730550364577,0.42852314,69603.0,69602.0,0.111544]
[1730550366519,0.39366925,69603.0,69602.0,0.111544]
[1730550366721,0.42853088,69603.0,69602.0,0.111544]
[1730550367072,0.42353088,69603.0,69602.0,0.111544]
[1730550367517,0.08450563,69603.0,69602.0,0.111544]
[1730550367705,0.06150563,69603.0,69602.0,0.291715]
[1730550369843,0.06151601,69603.0,69602.0,0.291715]
[1730550372259,0.17070594,69603.0,69602.0,0.291715]
[1730550373730,0.14924624,69603.0,69602.0,0.291715]
[1730550373962,0.17070084,69603.0,69602.0,0.291715]
[1730550377089,0.17069174,69603.0,69602.0,0.291715]
[1730550377295,0.27126174,69603.0,69602.0,0.191144]
[1730550377487,0.27126174,69603.0,69602.0,0.111544]
[1730550377718,0.29426174,69603.0,69602.0,0.111544]
[1730550378937,0.34954668,69603.0,69602.0,0.111544]
[1730550379150,0.33709896,69603.0,69602.0,0.111544]
[1730550379559,0.29426174,69603.0,69602.0,0.111544]
[1730550380608,0.35852471,69603.0,69602.0,0.111544]
[1730550381362,0.45852471,69603.0,69602.0,0.111544]
[1730550381564,0.58387953,69603.0,69602.0,0.111544]
[1730550382499,0.51962369,69603.0,69602.0,0.111544]
[1730550382865,0.5839791,69603.0,69602.0,0.111544]
[1730550383076,0.39426887,69603.0,69602.0,0.111544]
[1730550383307,0.45862316,69603.0,69602.0,0.111544]
[1730550383764,0.39426887,69603.0,69602.0,0.111544]
[1730550384083,0.55264479,69603.0,69602.0,0.111544]
[1730550385111,0.638452,69603.0,69602.0,0.111544]
[1730550385716,0.88220486,69603.0,69602.0,0.111544]
[1730550386165,0.79639765,69603.0,69602.0,0.111544]
[1730550386601,0.89509765,69603.0,69602.0,0.111544]
[1730550387275,1.08508758,69603.0,69602.0,0.111544]
[1730550387501,1.08508758,69603.0,69602.0,0.07917639]
[1730550387502,0.98089765,69603.0,69602.0,0.07917639]
[1730550388751,1.10960847,69603.0,69602.0,0.07917639]
[1730550389391,0.98089765,69603.0,69602.0,0.07917639]
[1730550390221,0.9594423,69603.0,69602.0,0.07917639]
[1730550391307,0.95944566,69603.0,69602.0,0.07917639]
[1730550392194,0.66964805,69603.0,69602.0,0.07917639]
[1730550392411,0.39900287,69603.0,69602.0,0.16117639]
[1730550392825,0.48480254,69603.0,69602.0,0.16117639]
[1730550393026,0.24062695,69603.0,69602.0,0.16117639]
[1730550393267,0.04005695,69603.0,69602.0,0.16117639]
[1730550393484,0.24062695,69603.0,69602.0,0.16117639]
[1730550393707,0.16305695,69603.0,69602.0,0.16117639]
[1730550393921,0.14005695,69603.0,69602.0,0.26174739]
[1730550394648,0.04005695,69603.0,69602.0,0.26174739]
[1730550396155,0.0615172,69603.0,69602.0,0.26174739]
[1730550397076,0.06151572,69603.0,69602.0,0.26174739]
[1730550397305,0.0400562,69603.0,69602.0,0.26174739]
[1730550398735,0.0400562,69603.0,69602.0,0.16117639]
[1730550398736,0.1406262,69603.0,69602.0,0.16117639]
[1730550398949,0.30573597,69603.0,69602.0,0.16117639]
[1730550399454,0.1400562,69603.0,69602.0,0.26174739]
[1730550399858,0.0400562,69603.0,69602.0,0.26174739]
[1730550401481,0.0400562,69603.0,69602.0,0.16117639]
[1730550401893,0.0400562,69603.0,69602.0,0.26174739]
[1730550405447,0.026644,69603.0,69602.0,0.26174739]
[1730550405639,0.04006017,69603.0,69602.0,0.26174739]
[1730550408450,0.04006017,69603.0,69602.0,0.26256839]
[1730550409012,0.02705975,69603.0,69602.0,0.26256839]
[1730550409213,0.02705975,69603.0,69602.0,0.183392]
[1730550409214,0.02205975,69603.0,69602.0,0.183392]
[1730550409434,0.02805975,69603.0,69602.0,0.183392]
[1730550409671,0.02105975,69603.0,69602.0,0.183392]
[1730550410078,0.02405975,69603.0,69602.0,0.183392]
[1730550410804,0.01805975,69603.0,69602.0,0.183392]
[1730550411210,0.02005975,69603.0,69602.0,0.183392]
[1730550412582,0.02005975,69603.0,69602.0,0.082821]
[1730550412813,0.02005975,69603.0,69602.0,0.000821]
[1730550413028,0.006644,69603.0,69602.0,0.000821]
[1730550413457,0.02005661,69603.0,69602.0,0.000821]
[1730550413884,0.02005661,69603.0,69602.0,0.101392]
[1730550414086,0.02005661,69603.0,69602.0,0.000821]
[1730550414087,0.1837594,69603.0,69602.0,0.000821]
[1730550415337,0.17034679,69603.0,69602.0,0.000821]
[1730550418617,0.107214,69603.0,69602.0,0.000821]
[1730550422075,0.21658137,69603.0,69602.0,0.000821]
[1730550422262,0.51815952,69603.0,69602.0,0.000821]
[1730550422472,0.47523662,69603.0,69602.0,0.000821]
[1730550423615,0.47223662,69603.0,69602.0,0.000821]
[1730550423992,0.60637736,69603.0,69602.0,0.000821]
[1730550424194,0.61981163,69603.0,69602.0,0.000821]
[1730550424604,0.61781163,69603.0,69602.0,0.000821]
[1730550424837,0.62981163,69603.0,69602.0,0.000821]
[1730550425250,0.64181163,69603.0,69602.0,0.000821]
[1730550425459,0.87965531,69603.0,69602.0,0.000821]
[1730550425731,0.96550111,69603.0,69602.0,0.000821]
[1730550425942,1.06550111,69603.0,69602.0,0.000821]
[1730550426610,1.0654964,69603.0,69602.0,0.000821]
[1730550426806,1.06549522,69603.0,69602.0,0.000821]
[1730550427016,0.9796506,69603.0,69602.0,0.000821]
[1730550427447,1.00113732,69603.0,69602.0,0.000821]
[1730550427665,1.11344309,69603.0,69602.0,0.000821]
[1730550427887,1.00613732,69603.0,69602.0,0.000821]
[1730550428104,1.04931444,69603.0,69602.0,0.000821]
[1730550428321,1.00613732,69603.0,69602.0,0.000821]
[1730550431367,1.13490425,69603.0,69602.0,0.000821]
[1730550432255,1.00613732,69603.0,69602.0,0.000821]
[1730550434011,1.13490425,69603.0,69602.0,0.000821]
[1730550437186,1.09998797,69603.0,69602.0,0.000821]
[1730550437390,1.13483083,69603.0,69602.0,0.000821]
[1730550437860,1.2441982,69603.0,69602.0,0.000821]
[1730550438088,1.13483083,69603.0,69602.0,0.000821]
[1730550439488,1.0060639,69603.0,69602.0,0.000821]
[1730550440888,1.00608195,69603.0,69602.0,0.000821]
[1730550447428,1.00610183,69603.0,69602.0,0.000821]
[1730550447849,0.34294137,69600.0,69599.0,0.000822]
[1730550448054,0.81319839,69600.0,69599.0,0.000822]
[1730550448262,0.92256576,69600.0,69599.0,0.000822]
[1730550449134,0.93256576,69600.0,69599.0,0.000822]
[1730550449591,0.94156576,69600.0,69599.0,0.000822]
[1730550451324,0.83219839,69600.0,69599.0,0.000822]
[1730550451553,0.82320612,69600.0,69599.0,0.000822]
[1730550451802,0.81320612,69600.0,69599.0,0.000822]
[1730550452249,0.82520612,69600.0,69599.0,0.000822]
[1730550452488,0.83620612,69600.0,69599.0,0.000822]
[1730550452730,0.82520612,69600.0,69599.0,0.000822]
[1730550452939,0.82720612,69600.0,69599.0,0.000822]
[1730550453166,0.84120612,69600.0,69599.0,0.000822]
[1730550454512,0.82720612,69600.0,69599.0,0.000822]
[1730550455664,0.84124632,69600.0,69599.0,0.000822]
[1730550457982,0.84120223,69600.0,69599.0,0.000822]
[1730550458199,0.88438567,69600.0,69599.0,0.000822]
[1730550459996,0.84120223,69600.0,69599.0,0.000822]
[1730550460227,0.88439845,69600.0,69599.0,0.000822]
[1730550460686,1.01312955,69600.0,69599.0,0.000822]
[1730550462065,0.88439845,69600.0,69599.0,0.000822]
[1730550462511,0.88443255,69600.0,69599.0,0.000822]
[1730550462945,0.21494837,69595.0,69594.0,0.001626]
[1730550463198,0.70989923,69595.0,69594.0,0.001626]
[1730550464529,0.72389923,69595.0,69594.0,0.001626]
[1730550465429,0.68376603,69595.0,69594.0,0.001626]
[1730550465666,0.69776603,69595.0,69594.0,0.001626]
[1730550466381,0.69776651,69595.0,69594.0,0.001626]
[1730550468820,0.69776598,69595.0,69594.0,0.001626]
[1730550470189,0.82659583,69595.0,69594.0,0.001626]
[1730550470422,0.96507313,69595.0,69594.0,0.001626]
[1730550471363,0.83624328,69595.0,69594.0,0.001626]
[1730550471597,0.96524364,69595.0,69594.0,0.001626]
[1730550471841,0.83624328,69595.0,69594.0,0.001626]
[1730550472076,0.96524399,69595.0,69594.0,0.001626]
[1730550472306,0.83624328,69595.0,69594.0,0.001626]
[1730550473724,0.80128051,69595.0,69594.0,0.001626]
[1730550473967,0.83624433,69595.0,69594.0,0.001626]
[1730550477587,0.81472796,69595.0,69594.0,0.001626]
[1730550477799,0.83624389,69595.0,69594.0,0.001626]
[1730550478015,0.83624386,69595.0,69594.0,0.001626]
[1730550479364,0.8362437,69595.0,69594.0,0.001626]
[1730550481000,0.80128051,69595.0,69594.0,0.001626]
[1730550481227,0.83624384,69595.0,69594.0,0.001626]
[1730550481668,0.83668576,69595.0,69594.0,0.001626]
[1730550482946,0.83668546,69595.0,69594.0,0.001626]
[1730550483365,0.87992909,69595.0,69594.0,0.001626]
[1730550483624,0.83668546,69595.0,69594.0,0.001626]
[1730550483846,0.84496596,69595.0,69594.0,0.001626]
[1730550484062,0.8659283,69595.0,69594.0,0.001626]
[1730550484483,0.741451,69595.0,69594.0,0.001626]
[1730550484693,0.85081837,69595.0,69594.0,0.001626]
[1730550484967,0.20996137,69586.0,69582.0,0.0995]
[1730550485192,0.40376522,69586.0,69582.0,0.0995]
[1730550486688,0.42076522,69586.0,69582.0,0.0995]
[1730550486891,0.47074841,69586.0,69582.0,0.0995]
[1730550487099,0.48150322,69586.0,69582.0,0.0995]
[1730550487545,0.48149388,69586.0,69582.0,0.0995]
[1730550488035,0.58144516,69586.0,69582.0,0.0995]
[1730550490028,0.58144516,69586.0,69585.0,0.083021]
[1730550490884,0.56444516,69586.0,69585.0,0.083021]
[1730550491128,0.52949461,69586.0,69585.0,0.083021]
[1730550491351,0.58543793,69586.0,69585.0,0.083021]
[1730550491795,0.53545474,69586.0,69585.0,0.083021]
[1730550492024,0.42608737,69586.0,69585.0,0.083021]
[1730550492490,0.42605811,69586.0,69585.0,0.083021]
[1730550492710,0.42605811,69586.0,69585.0,0.182521]
[1730550492938,0.32546411,69586.0,69585.0,0.182521]
[1730550493164,0.51208197,69586.0,69585.0,0.182521]
[1730550493376,0.42605811,69586.0,69585.0,0.182521]
[1730550493811,0.51208238,69586.0,69585.0,0.182521]
[1730550494020,0.49057775,69586.0,69585.0,0.182521]
[1730550494237,0.49057748,69586.0,69585.0,0.182521]
[1730550494652,0.40455348,69586.0,69585.0,0.182521]
[1730550495085,0.42605788,69586.0,69585.0,0.182521]
[1730550495526,0.42605788,69586.0,69585.0,0.261717]
[1730550495527,0.74748734,69586.0,69585.0,0.261717]
[1730550496796,0.74749149,69586.0,69585.0,0.261717]
[1730550497242,0.74749091,69586.0,69585.0,0.261717]
[1730550498135,0.605018,69586.0,69585.0,0.261717]
[1730550498315,0.63996276,69586.0,69585.0,0.261717]
[1730550498554,0.73673914,69586.0,69585.0,0.261717]
[1730550498776,0.63220747,69586.0,69585.0,0.261717]
[1730550499235,0.53359233,69586.0,69585.0,0.261717]
[1730550499652,0.42606371,69586.0,69585.0,0.261717]
[1730550500080,0.53359233,69586.0,69585.0,0.261717]
[1730550501824,0.5335925,69586.0,69585.0,0.261717]
[1730550505837,0.53359575,69586.0,69585.0,0.261717]
[1730550507387,0.5872352,69586.0,69585.0,0.261717]
[1730550507603,0.47970527,69586.0,69585.0,0.080017]
[1730550508116,0.45820081,69586.0,69585.0,0.080017]
[1730550509187,0.47970474,69586.0,69585.0,0.080017]
[1730550510271,0.47966934,69586.0,69585.0,0.080017]
[1730550510488,0.73732459,69586.0,69585.0,0.080017]
[1730550511347,0.73732232,69586.0,69585.0,0.080017]
[1730550511570,0.71632232,69586.0,69585.0,0.080017]
[1730550511784,0.73032232,69586.0,69585.0,0.080017]
[1730550511996,0.74432232,69586.0,69585.0,0.080017]
[1730550512216,0.83968969,69586.0,69585.0,0.080017]
[1730550512639,0.85368969,69586.0,69585.0,0.080017]
[1730550512861,0.74432232,69586.0,69585.0,0.080017]
[1730550513080,0.85368969,69586.0,69585.0,0.080017]
[1730550513295,0.83968969,69586.0,69585.0,0.080017]
[1730550513501,0.74432232,69586.0,69585.0,0.080017]
[1730550514144,0.85368969,69586.0,69585.0,0.080017]
[1730550514819,0.74432232,69586.0,69585.0,0.080017]
[1730550515237,0.85368969,69586.0,69585.0,0.080017]
[1730550515911,0.81874112,69586.0,69585.0,0.080017]
[1730550516135,0.85366487,69586.0,69585.0,0.080017]
[1730550517216,0.72280596,69586.0,69585.0,0.080017]
[1730550518329,0.74429385,69586.0,69585.0,0.080017]
[1730550519390,0.85355318,69586.0,69585.0,0.080017]
[1730550520704,0.85354203,69586.0,69585.0,0.080017]
[1730550522443,0.98245366,69586.0,69585.0,0.080017]
[1730550523089,0.85352984,69586.0,69585.0,0.080017]
[1730550523544,0.98244147,69586.0,69585.0,0.080017]
[1730550523758,0.85351101,69586.0,69585.0,0.080017]
[1730550524424,0.98240795,69586.0,69585.0,0.080017]
[1730550524638,0.85351101,69586.0,69585.0,0.080017]
[1730550526385,0.98240795,69586.0,69585.0,0.080017]
[1730550526624,0.85350703,69586.0,69585.0,0.080017]
[1730550526822,0.98240397,69586.0,69585.0,0.080017]
[1730550527697,0.85350703,69586.0,69585.0,0.080017]
[1730550530566,0.98240397,69586.0,69585.0,0.080017]
[1730550530778,0.85351125,69586.0,69585.0,0.080017]
[1730550531431,0.98240819,69586.0,69585.0,0.080017]
[1730550531650,0.85351125,69586.0,69585.0,0.080017]
[1730550532096,0.98240819,69586.0,69585.0,0.080017]
[1730550532754,0.98234469,69586.0,69585.0,0.080017]
[1730550532962,0.89114469,69586.0,69585.0,0.080017]
[1730550533165,0.76227622,69586.0,69585.0,0.080017]
[1730550534148,0.76228492,69586.0,69585.0,0.080017]
[1730550537708,0.72736827,69586.0,69585.0,0.080017]
[1730550537938,0.76231186,69586.0,69585.0,0.080017]
[1730550539498,0.65294449,69586.0,69585.0,0.080017]
[1730550539725,0.65294449,69586.0,69585.0,0.251217]
[1730550539726,0.56436779,69586.0,69585.0,0.251217]
[1730550539954,0.59931196,69586.0,69585.0,0.251217]
[1730550541114,0.59933304,69586.0,69585.0,0.251217]
[1730550541607,0.59933642,69586.0,69585.0,0.251217]
[1730550541849,0.59932088,69586.0,69585.0,0.251217]
[1730550543882,0.72426888,69586.0,69585.0,0.251217]
[1730550544313,0.57131255,69586.0,69585.0,0.251217]
[1730550545369,0.5713387,69586.0,69585.0,0.251217]
[1730550547995,0.57133184,69586.0,69585.0,0.251217]
[1730550548433,0.57132801,69586.0,69585.0,0.251217]
[1730550548932,0.52564956,69586.0,69585.0,0.251217]
[1730550549144,0.56057801,69586.0,69585.0,0.251217]
[1730550552443,0.66541228,69586.0,69585.0,0.080017]
[1730550553089,0.80277965,69586.0,69585.0,0.080017]
[1730550553559,0.93167387,69586.0,69585.0,0.080017]
[1730550554186,0.64417934,69586.0,69585.0,0.080017]
[1730550554399,0.93185014,69586.0,69585.0,0.080017]
[1730550556388,0.80287689,69586.0,69585.0,0.080017]
[1730550557079,0.93185014,69586.0,69585.0,0.080017]
[1730550558407,0.98765919,69586.0,69585.0,0.080017]
[1730550558615,0.80787689,69586.0,69585.0,0.080017]
[1730550558825,0.80787886,69586.0,69585.0,0.080017]
[1730550560174,0.80787811,69586.0,69585.0,0.080017]
[1730550560404,0.90587811,69586.0,69585.0,0.080017]
[1730550563448,0.89244604,69586.0,69585.0,0.080017]
[1730550563672,0.90588081,69586.0,69585.0,0.080017]
[1730550564975,0.90088081,69586.0,69585.0,0.080017]
[1730550565604,0.90588081,69586.0,69585.0,0.080017]
[1730550566564,0.80788081,69586.0,69585.0,0.080017]
[1730550567416,0.91535549,69586.0,69585.0,0.080017]
[1730550567639,0.93685242,69586.0,69585.0,0.080017]
[1730550567852,0.80788292,69586.0,69585.0,0.080017]
[1730550568331,0.79388292,69586.0,69585.0,0.080017]
[1730550568984,0.77488264,69586.0,69585.0,0.080017]
[1730550569187,0.77988264,69586.0,69585.0,0.080017]
[1730550569401,0.79388264,69586.0,69585.0,0.080017]